[Event "Titled Tuesday Blitz January 17 Early 2023"]
[White "Schekachikhin, Maksim"]
[Black "Chilukuri, Sai Varshith"]
[WhiteFideId "24177830"]
[BlackFideId "25617125"]
[WhiteElo "2371"]
[BlackElo "1943"]
[Result "1-0"]
[Round "01"]
[TimeControl "180+2"]
[Date "2023.01.17"]
[WhiteClock "0:02:21"]
[BlackClock "0:02:49"]

1. Nf3 {[%clk 0:02:59]}  Nf6 {[%clk 0:02:59]} 2. c4 {[%clk 0:02:57]}  c5 {[%clk 0:02:59]} 3. Nc3 {[%clk 0:02:55]}  Nc6 {[%clk 0:02:59]} 4. g3 {[%clk 0:02:55]}  g6 {[%clk 0:02:58]} 5. d4 {[%clk 0:02:53]}  Bg7 {[%clk 0:02:59]} 6. d5 {[%clk 0:02:53]}  Nb4 {[%clk 0:02:58]} 7. Bg2 {[%clk 0:02:40]}  O-O {[%clk 0:02:57]} 8. O-O {[%clk 0:02:39]}  e6 {[%clk 0:02:58]} 9. a3 {[%clk 0:02:38]}  Na6 {[%clk 0:02:58]} 10. e4 {[%clk 0:02:38]}  exd5 {[%clk 0:02:57]} 11. e5 {[%clk 0:02:29]}  Ne4 {[%clk 0:02:53]} 12. Nxd5 {[%clk 0:02:28]}  d6 {[%clk 0:02:52]} 13. Re1 {[%clk 0:02:25]}  f5 {[%clk 0:02:51]} 14. exf6 {[%clk 0:02:25]}  Nxf6 {[%clk 0:02:49]} 15. Bg5 {[%clk 0:02:23]}  h6 {[%clk 0:02:48]} 16. Nxf6+ {[%clk 0:02:21]}  Bxf6 {[%clk 0:02:49]} 17. Bxh6 {[%clk 0:02:21]} 1-0


[Site "https://www.chess.com"]

[Event "Titled Tuesday Blitz January 17 Early 2023"]
[White "Bagwe Gaurang"]
[Black "Better_Chess_Faster"]
[WhiteFideId "45039895"]
[WhiteElo "2067"]
[BlackElo "2030"]
[Result "1-0"]
[Round "01"]
[TimeControl "180+2"]
[Date "2023.01.17"]
[WhiteClock "0:02:09"]
[BlackClock "0:02:08"]

1. e4 {[%clk 0:02:56]}  e5 {[%clk 0:02:59]} 2. Nf3 {[%clk 0:02:56]}  Nc6 {[%clk 0:02:59]} 3. Bb5 {[%clk 0:02:50]}  a6 {[%clk 0:02:59]} 4. Bxc6 {[%clk 0:02:46]}  dxc6 {[%clk 0:02:57]} 5. O-O {[%clk 0:02:44]}  Bd6 {[%clk 0:02:56]} 6. d4 {[%clk 0:02:39]}  exd4 {[%clk 0:02:56]} 7. Qxd4 {[%clk 0:02:39]}  f6 {[%clk 0:02:57]} 8. Re1 {[%clk 0:02:34]}  Ne7 {[%clk 0:02:56]} 9. e5 {[%clk 0:02:26]}  fxe5 {[%clk 0:02:56]} 10. Nxe5 {[%clk 0:02:26]}  Bxe5 {[%clk 0:02:49]} 11. Qxe5 {[%clk 0:02:25]}  Qd6 {[%clk 0:02:31]} 12. Qxd6 {[%clk 0:02:22]}  cxd6 {[%clk 0:02:30]} 13. Bg5 {[%clk 0:02:22]}  O-O {[%clk 0:02:24]} 14. Bxe7 {[%clk 0:02:20]}  Re8 {[%clk 0:02:24]} 15. Nc3 {[%clk 0:02:21]}  d5 {[%clk 0:02:23]} 16. Bc5 {[%clk 0:02:19]}  Bf5 {[%clk 0:02:23]} 17. Rxe8+ {[%clk 0:02:12]}  Rxe8 {[%clk 0:02:24]} 18. Rc1 {[%clk 0:02:12]}  Kf7 {[%clk 0:02:22]} 19. f3 {[%clk 0:02:11]}  b5 {[%clk 0:02:13]} 20. Kf2 {[%clk 0:02:10]}  a5 {[%clk 0:02:13]} 21. Ne2 {[%clk 0:02:09]}  a4 {[%clk 0:02:09]} 22. Nd4 {[%clk 0:02:09]}  Rc8 {[%clk 0:02:08]} 23. Re1 {[%clk 0:02:09]}  Bd7 {[%clk 0:02:08]} 24. Re7+ {[%clk 0:02:09]} 1-0


[Site "https://www.chess.com"]

[Event "Titled Tuesday Blitz January 17 Early 2023"]
[White "Tharushi, T H D Niklesha"]
[Black "Jimenez Almeida, Luis David"]
[WhiteFideId "9918264"]
[BlackFideId "22242244"]
[WhiteElo "1570"]
[BlackElo "2242"]
[Result "1-0"]
[Round "01"]
[TimeControl "180+2"]
[Date "2023.01.17"]
[WhiteClock "0:00:17"]
[BlackClock "0:00:20"]

1. e4 {[%clk 0:02:59]}  c6 {[%clk 0:02:56]} 2. d4 {[%clk 0:02:58]}  g6 {[%clk 0:02:56]} 3. c4 {[%clk 0:02:56]}  Bg7 {[%clk 0:02:55]} 4. Nc3 {[%clk 0:02:52]}  d6 {[%clk 0:02:55]} 5. Be3 {[%clk 0:02:52]}  Nf6 {[%clk 0:02:55]} 6. f3 {[%clk 0:02:52]}  h5 {[%clk 0:02:54]} 7. Qd2 {[%clk 0:02:52]}  a5 {[%clk 0:02:54]} 8. Bd3 {[%clk 0:02:51]}  Na6 {[%clk 0:02:54]} 9. a3 {[%clk 0:02:49]}  e5 {[%clk 0:02:54]} 10. d5 {[%clk 0:02:48]}  Nc5 {[%clk 0:02:51]} 11. Bc2 {[%clk 0:02:45]}  O-O {[%clk 0:02:48]} 12. Nge2 {[%clk 0:02:43]}  cxd5 {[%clk 0:02:41]} 13. cxd5 {[%clk 0:02:42]}  Bd7 {[%clk 0:02:39]} 14. O-O {[%clk 0:02:41]}  Kh7 {[%clk 0:02:38]} 15. b4 {[%clk 0:02:40]}  axb4 {[%clk 0:02:37]} 16. axb4 {[%clk 0:02:40]}  Na6 {[%clk 0:02:31]} 17. Na4 {[%clk 0:02:37]}  Bxa4 {[%clk 0:02:20]} 18. Rxa4 {[%clk 0:02:38]}  Qc7 {[%clk 0:02:16]} 19. Bd3 {[%clk 0:02:36]}  Rfc8 {[%clk 0:02:14]} 20. Rfa1 {[%clk 0:02:35]}  Rab8 {[%clk 0:02:07]} 21. Bxa6 {[%clk 0:02:12]}  bxa6 {[%clk 0:02:08]} 22. Rxa6 {[%clk 0:02:12]}  Qc4 {[%clk 0:01:51]} 23. Rb6 {[%clk 0:01:51]}  Rxb6 {[%clk 0:01:48]} 24. Bxb6 {[%clk 0:01:52]}  Bh6 {[%clk 0:01:46]} 25. Qb2 {[%clk 0:01:42]}  Rb8 {[%clk 0:01:38]} 26. Ba5 {[%clk 0:01:41]}  Qd3 {[%clk 0:01:29]} 27. Rb1 {[%clk 0:01:20]}  h4 {[%clk 0:01:20]} 28. Bc7 {[%clk 0:01:18]}  Qe3+ {[%clk 0:01:12]} 29. Kh1 {[%clk 0:01:17]}  Rb5 {[%clk 0:01:07]} 30. Bxd6 {[%clk 0:01:16]}  h3 {[%clk 0:01:06]} 31. Bxe5 {[%clk 0:01:03]}  Nh5 {[%clk 0:01:04]} 32. Ng3 {[%clk 0:00:35]}  Nf4 {[%clk 0:00:52]} 33. Bxf4 {[%clk 0:00:29]}  Bxf4 {[%clk 0:00:53]} 34. Qe2 {[%clk 0:00:29]}  hxg2+ {[%clk 0:00:48]} 35. Kxg2 {[%clk 0:00:27]}  Qd4 {[%clk 0:00:49]} 36. Qxb5 {[%clk 0:00:26]}  Qd2+ {[%clk 0:00:46]} 37. Qe2 {[%clk 0:00:25]}  Qd4 {[%clk 0:00:45]} 38. b5 {[%clk 0:00:25]}  Bd6 {[%clk 0:00:43]} 39. b6 {[%clk 0:00:25]}  Bb8 {[%clk 0:00:41]} 40. b7 {[%clk 0:00:25]}  Qe5 {[%clk 0:00:41]} 41. Qb2 {[%clk 0:00:24]}  Qf4 {[%clk 0:00:41]} 42. Qc1 {[%clk 0:00:20]}  Qe5 {[%clk 0:00:40]} 43. Qc8 {[%clk 0:00:20]}  Qf4 {[%clk 0:00:33]} 44. Qxb8 {[%clk 0:00:21]}  Qxb8 {[%clk 0:00:33]} 45. Ne2 {[%clk 0:00:21]}  Kg7 {[%clk 0:00:29]} 46. Nd4 {[%clk 0:00:22]}  Qd8 {[%clk 0:00:19]} 47. b8=Q {[%clk 0:00:21]}  Qg5+ {[%clk 0:00:19]} 48. Qg3 {[%clk 0:00:20]}  Qd2+ {[%clk 0:00:20]} 49. Qf2 {[%clk 0:00:20]}  Qd3 {[%clk 0:00:21]} 50. Rb3 {[%clk 0:00:20]}  Qc4 {[%clk 0:00:21]} 51. Qe2 {[%clk 0:00:17]}  Qxd4 {[%clk 0:00:20]} 52. Qb2 {[%clk 0:00:17]} 1-0


[Site "https://www.chess.com"]

[Event "Titled Tuesday Blitz January 17 Early 2023"]
[White "Bazarov, Konstantin"]
[Black "Mohammadian, Mohammad"]
[WhiteFideId "4137000"]
[BlackFideId "12566055"]
[WhiteElo "2235"]
[BlackElo "1398"]
[Result "1-0"]
[Round "01"]
[TimeControl "180+2"]
[Date "2023.01.17"]
[WhiteClock "0:01:55"]
[BlackClock "0:00:03"]

1. d4 {[%clk 0:02:59]}  Nf6 {[%clk 0:02:57]} 2. c4 {[%clk 0:02:58]}  g6 {[%clk 0:02:56]} 3. Nc3 {[%clk 0:02:57]}  d5 {[%clk 0:02:55]} 4. Bg5 {[%clk 0:02:56]}  c6 {[%clk 0:02:51]} 5. Bxf6 {[%clk 0:02:55]}  exf6 {[%clk 0:02:51]} 6. cxd5 {[%clk 0:02:55]}  cxd5 {[%clk 0:02:49]} 7. Qb3 {[%clk 0:02:54]}  Nc6 {[%clk 0:02:24]} 8. e3 {[%clk 0:02:50]}  Bb4 {[%clk 0:02:08]} 9. Ne2 {[%clk 0:02:47]}  O-O {[%clk 0:02:06]} 10. a3 {[%clk 0:02:46]}  Ba5 {[%clk 0:02:04]} 11. g3 {[%clk 0:02:43]}  Rb8 {[%clk 0:01:57]} 12. Bg2 {[%clk 0:02:42]}  Be6 {[%clk 0:01:57]} 13. O-O {[%clk 0:02:40]}  Bb6 {[%clk 0:01:32]} 14. Bxd5 {[%clk 0:02:33]}  Qd7 {[%clk 0:01:15]} 15. Nf4 {[%clk 0:02:22]}  Na5 {[%clk 0:01:09]} 16. Bxe6 {[%clk 0:02:15]}  Nxb3 {[%clk 0:01:06]} 17. Bxd7 {[%clk 0:02:14]}  Nxa1 {[%clk 0:01:04]} 18. Rxa1 {[%clk 0:02:15]}  Rbd8 {[%clk 0:01:00]} 19. Nfd5 {[%clk 0:02:11]}  Rxd7 {[%clk 0:00:58]} 20. Nxf6+ {[%clk 0:02:11]}  Kg7 {[%clk 0:00:58]} 21. Nxd7 {[%clk 0:02:10]}  Rc8 {[%clk 0:00:53]} 22. Nxb6 {[%clk 0:02:09]}  axb6 {[%clk 0:00:53]} 23. e4 {[%clk 0:02:08]}  Rc4 {[%clk 0:00:49]} 24. Rd1 {[%clk 0:02:06]}  Kf8 {[%clk 0:00:48]} 25. Kf1 {[%clk 0:02:04]}  Ke7 {[%clk 0:00:47]} 26. Ke2 {[%clk 0:02:04]}  Ke6 {[%clk 0:00:45]} 27. Kd3 {[%clk 0:02:04]}  Rc8 {[%clk 0:00:43]} 28. f4 {[%clk 0:02:04]}  f6 {[%clk 0:00:43]} 29. d5+ {[%clk 0:02:03]}  Kd6 {[%clk 0:00:42]} 30. Kd4 {[%clk 0:02:03]}  h5 {[%clk 0:00:37]} 31. e5+ {[%clk 0:02:03]}  fxe5+ {[%clk 0:00:37]} 32. fxe5+ {[%clk 0:02:02]}  Ke7 {[%clk 0:00:33]} 33. d6+ {[%clk 0:02:01]}  Ke6 {[%clk 0:00:30]} 34. Rf1 {[%clk 0:02:01]}  Rc5 {[%clk 0:00:23]} 35. Rf6+ {[%clk 0:01:59]}  Kd7 {[%clk 0:00:21]} 36. Rf7+ {[%clk 0:01:58]}  Ke6 {[%clk 0:00:20]} 37. Re7+ {[%clk 0:01:57]}  Kf5 {[%clk 0:00:16]} 38. d7 {[%clk 0:01:57]}  Rxe5 {[%clk 0:00:03]} 39. Rxe5+ {[%clk 0:01:55]} 1-0


[Site "https://www.chess.com"]

[Event "Titled Tuesday Blitz January 17 Early 2023"]
[White "Dubov, Daniil"]
[Black "Gauri, Shankar"]
[WhiteFideId "24126055"]
[BlackFideId "5041350"]
[WhiteElo "2708"]
[BlackElo "2360"]
[Result "1/2-1/2"]
[Round "02"]
[TimeControl "180+2"]
[Date "2023.01.17"]
[WhiteClock "0:00:04"]
[BlackClock "0:00:11"]

1. d4 {[%clk 0:02:57]}  Nf6 {[%clk 0:02:59]} 2. Nf3 {[%clk 0:02:57]}  e6 {[%clk 0:02:57]} 3. Bg5 {[%clk 0:02:58]}  h6 {[%clk 0:02:52]} 4. Bxf6 {[%clk 0:02:57]}  Qxf6 {[%clk 0:02:52]} 5. e4 {[%clk 0:02:58]}  d5 {[%clk 0:02:39]} 6. Nbd2 {[%clk 0:02:56]}  Qd8 {[%clk 0:02:34]} 7. Bd3 {[%clk 0:02:51]}  Be7 {[%clk 0:02:26]} 8. O-O {[%clk 0:02:43]}  dxe4 {[%clk 0:02:19]} 9. Nxe4 {[%clk 0:02:41]}  Nd7 {[%clk 0:02:16]} 10. Qe2 {[%clk 0:02:34]}  O-O {[%clk 0:02:06]} 11. Rad1 {[%clk 0:02:31]}  b6 {[%clk 0:01:29]} 12. Rfe1 {[%clk 0:02:01]}  Bb7 {[%clk 0:01:28]} 13. Ba6 {[%clk 0:02:01]}  Qc8 {[%clk 0:01:24]} 14. Bxb7 {[%clk 0:02:00]}  Qxb7 {[%clk 0:01:25]} 15. Rd3 {[%clk 0:01:27]}  Nf6 {[%clk 0:01:19]} 16. Ne5 {[%clk 0:01:21]}  Nxe4 {[%clk 0:01:10]} 17. Qxe4 {[%clk 0:01:22]}  Qxe4 {[%clk 0:01:11]} 18. Rxe4 {[%clk 0:01:22]}  Bd6 {[%clk 0:00:44]} 19. Nc6 {[%clk 0:01:17]}  a5 {[%clk 0:00:41]} 20. a4 {[%clk 0:01:13]}  Rae8 {[%clk 0:00:32]} 21. Rde3 {[%clk 0:00:51]}  Ra8 {[%clk 0:00:19]} 22. Kf1 {[%clk 0:00:48]}  g6 {[%clk 0:00:18]} 23. Ke2 {[%clk 0:00:47]}  Kg7 {[%clk 0:00:19]} 24. h3 {[%clk 0:00:39]}  h5 {[%clk 0:00:19]} 25. Kd3 {[%clk 0:00:38]}  Rh8 {[%clk 0:00:19]} 26. h4 {[%clk 0:00:36]}  Kf8 {[%clk 0:00:14]} 27. Kc4 {[%clk 0:00:32]}  Ke8 {[%clk 0:00:13]} 28. d5 {[%clk 0:00:18]}  Kd7 {[%clk 0:00:13]} 29. Ne5+ {[%clk 0:00:18]}  Bxe5 {[%clk 0:00:12]} 30. Rxe5 {[%clk 0:00:19]}  exd5+ {[%clk 0:00:08]} 31. Rxd5+ {[%clk 0:00:10]}  Kc6 {[%clk 0:00:08]} 32. Rf3 {[%clk 0:00:10]}  f5 {[%clk 0:00:06]} 33. Rg3 {[%clk 0:00:08]}  Rhg8 {[%clk 0:00:07]} 34. Re5 {[%clk 0:00:08]}  Rad8 {[%clk 0:00:06]} 35. Re6+ {[%clk 0:00:03]}  Rd6 {[%clk 0:00:06]} 36. Rge3 {[%clk 0:00:03]}  Rd8 {[%clk 0:00:06]} 37. Rxd6+ {[%clk 0:00:02]}  Rxd6 {[%clk 0:00:06]} 38. Kc3 {[%clk 0:00:02]}  Kd5 {[%clk 0:00:05]} 39. Re7 {[%clk 0:00:02]}  c5 {[%clk 0:00:03]} 40. f3 {[%clk 0:00:02]}  Kc6 {[%clk 0:00:03]} 41. g3 {[%clk 0:00:02]}  Kd5 {[%clk 0:00:01]} 42. Rg7 {[%clk 0:00:02]}  Re6 {[%clk 0:00:01]} 43. Kd3 {[%clk 0:00:02]}  Kd6 {[%clk 0:00:01]} 44. Kc4 {[%clk 0:00:02]}  Kc6 {[%clk 0:00:01]} 45. c3 {[%clk 0:00:03]}  Rd6 {[%clk 0:00:02]} 46. Re7 {[%clk 0:00:03]}  Rf6 {[%clk 0:00:01]} 47. Re8 {[%clk 0:00:03]}  Rd6 {[%clk 0:00:01]} 48. Rc8+ {[%clk 0:00:03]}  Kb7 {[%clk 0:00:02]} 49. Rg8 {[%clk 0:00:03]}  Kc6 {[%clk 0:00:03]} 50. Rf8 {[%clk 0:00:03]}  Re6 {[%clk 0:00:03]} 51. Rd8 {[%clk 0:00:04]}  Kc7 {[%clk 0:00:03]} 52. Rg8 {[%clk 0:00:03]}  Kc6 {[%clk 0:00:03]} 53. Rg7 {[%clk 0:00:03]}  Rd6 {[%clk 0:00:03]} 54. Re7 {[%clk 0:00:03]}  Rf6 {[%clk 0:00:04]} 55. Re2 {[%clk 0:00:03]}  Rd6 {[%clk 0:00:04]} 56. Re5 {[%clk 0:00:03]}  Rf6 {[%clk 0:00:04]} 57. Re1 {[%clk 0:00:03]}  Rd6 {[%clk 0:00:04]} 58. Re2 {[%clk 0:00:04]}  Rf6 {[%clk 0:00:05]} 59. b4 {[%clk 0:00:04]}  cxb4 {[%clk 0:00:04]} 60. cxb4 {[%clk 0:00:05]}  axb4 {[%clk 0:00:05]} 61. Kxb4 {[%clk 0:00:06]}  Rd6 {[%clk 0:00:05]} 62. Re7 {[%clk 0:00:05]}  Rd4+ {[%clk 0:00:05]} 63. Kc3 {[%clk 0:00:04]}  Rxa4 {[%clk 0:00:05]} 64. Re6+ {[%clk 0:00:04]}  Kc5 {[%clk 0:00:06]} 65. Rxg6 {[%clk 0:00:04]}  Ra3+ {[%clk 0:00:06]} 66. Kd2 {[%clk 0:00:05]}  Rxf3 {[%clk 0:00:07]} 67. Ke2 {[%clk 0:00:06]}  Ra3 {[%clk 0:00:07]} 68. Rg5 {[%clk 0:00:06]}  Kd4 {[%clk 0:00:07]} 69. Kf2 {[%clk 0:00:07]}  Ke4 {[%clk 0:00:07]} 70. Rxh5 {[%clk 0:00:07]}  Ra2+ {[%clk 0:00:08]} 71. Ke1 {[%clk 0:00:05]}  Ra1+ {[%clk 0:00:08]} 72. Kd2 {[%clk 0:00:05]}  Ra2+ {[%clk 0:00:09]} 73. Ke1 {[%clk 0:00:05]}  Ra1+ {[%clk 0:00:09]} 74. Ke2 {[%clk 0:00:05]}  Ra2+ {[%clk 0:00:10]} 75. Kd1 {[%clk 0:00:05]}  Ra1+ {[%clk 0:00:10]} 76. Kc2 {[%clk 0:00:05]}  Ra2+ {[%clk 0:00:10]} 77. Kb3 {[%clk 0:00:06]}  Rg2 {[%clk 0:00:11]} 78. Rg5 {[%clk 0:00:06]}  b5 {[%clk 0:00:08]} 79. Kb4 {[%clk 0:00:06]}  Rb2+ {[%clk 0:00:08]} 80. Kc3 {[%clk 0:00:06]}  Rb1 {[%clk 0:00:09]} 81. h5 {[%clk 0:00:06]}  Rh1 {[%clk 0:00:08]} 82. Kb4 {[%clk 0:00:06]}  f4 {[%clk 0:00:08]} 83. gxf4 {[%clk 0:00:04]}  Kxf4 {[%clk 0:00:09]} 84. Rxb5 {[%clk 0:00:04]}  Kg4 {[%clk 0:00:09]} 85. Ka5 {[%clk 0:00:04]}  Rxh5 {[%clk 0:00:10]} 86. Rxh5 {[%clk 0:00:04]}  Kxh5 {[%clk 0:00:11]} 1/2-1/2


[Site "https://www.chess.com"]

[Event "Titled Tuesday Blitz January 17 Early 2023"]
[White "Andreikin, Dmitry"]
[Black "Lewtak, Damian"]
[WhiteFideId "4158814"]
[BlackFideId "1141724"]
[WhiteElo "2729"]
[BlackElo "2381"]
[Result "1-0"]
[Round "02"]
[TimeControl "180+2"]
[Date "2023.01.17"]
[WhiteClock "0:02:20"]
[BlackClock "0:01:10"]

1. c4 {[%clk 0:03:00]}  g6 {[%clk 0:02:56]} 2. Nc3 {[%clk 0:02:56]}  Bg7 {[%clk 0:02:57]} 3. d4 {[%clk 0:02:55]}  e6 {[%clk 0:02:44]} 4. Bf4 {[%clk 0:02:50]}  Ne7 {[%clk 0:02:39]} 5. Nf3 {[%clk 0:02:50]}  d5 {[%clk 0:02:30]} 6. cxd5 {[%clk 0:02:48]}  exd5 {[%clk 0:02:30]} 7. e3 {[%clk 0:02:48]}  O-O {[%clk 0:02:28]} 8. Be2 {[%clk 0:02:47]}  h6 {[%clk 0:02:18]} 9. O-O {[%clk 0:02:46]}  g5 {[%clk 0:02:14]} 10. Be5 {[%clk 0:02:44]}  f6 {[%clk 0:02:14]} 11. Bg3 {[%clk 0:02:43]}  Nf5 {[%clk 0:02:15]} 12. b4 {[%clk 0:02:36]}  a5 {[%clk 0:02:10]} 13. b5 {[%clk 0:02:35]}  Nxg3 {[%clk 0:02:10]} 14. hxg3 {[%clk 0:02:34]}  g4 {[%clk 0:02:03]} 15. Nh4 {[%clk 0:02:33]}  f5 {[%clk 0:02:03]} 16. Rc1 {[%clk 0:02:32]}  c6 {[%clk 0:01:46]} 17. Ng6 {[%clk 0:02:31]}  Re8 {[%clk 0:01:42]} 18. Qc2 {[%clk 0:02:28]}  Qf6 {[%clk 0:01:39]} 19. Nf4 {[%clk 0:02:25]}  Nd7 {[%clk 0:01:33]} 20. Na4 {[%clk 0:02:23]}  cxb5 {[%clk 0:01:10]} 21. Bxb5 {[%clk 0:02:20]} 1-0


[Site "https://www.chess.com"]

[Event "Titled Tuesday Blitz January 17 Early 2023"]
[White "Martinez Alcantara, Jose Eduardo"]
[Black "Atakhan, Abtin"]
[WhiteFideId "3805662"]
[BlackFideId "22502203"]
[WhiteElo "2619"]
[BlackElo "2422"]
[Result "1-0"]
[Round "02"]
[TimeControl "180+2"]
[Date "2023.01.17"]
[WhiteClock "0:00:16"]
[BlackClock "0:00:10"]

1. e4 {[%clk 0:03:00]}  c5 {[%clk 0:02:59]} 2. Nf3 {[%clk 0:03:01]}  d6 {[%clk 0:03:00]} 3. c3 {[%clk 0:03:02]}  Nf6 {[%clk 0:03:00]} 4. h3 {[%clk 0:03:02]}  g6 {[%clk 0:02:59]} 5. Bd3 {[%clk 0:03:03]}  Bg7 {[%clk 0:02:59]} 6. Bc2 {[%clk 0:03:03]}  O-O {[%clk 0:03:00]} 7. O-O {[%clk 0:03:04]}  Nc6 {[%clk 0:02:59]} 8. d4 {[%clk 0:03:04]}  cxd4 {[%clk 0:02:58]} 9. cxd4 {[%clk 0:03:05]}  d5 {[%clk 0:02:58]} 10. e5 {[%clk 0:03:05]}  Ne4 {[%clk 0:02:58]} 11. Nc3 {[%clk 0:03:06]}  Bf5 {[%clk 0:02:54]} 12. Re1 {[%clk 0:03:00]}  Nxc3 {[%clk 0:02:53]} 13. bxc3 {[%clk 0:03:01]}  Bxc2 {[%clk 0:02:54]} 14. Qxc2 {[%clk 0:03:01]}  Rc8 {[%clk 0:02:53]} 15. Bg5 {[%clk 0:02:55]}  h6 {[%clk 0:02:49]} 16. Bf4 {[%clk 0:02:52]}  Qd7 {[%clk 0:02:43]} 17. Qd2 {[%clk 0:02:31]}  Kh7 {[%clk 0:02:41]} 18. Rac1 {[%clk 0:02:26]}  e6 {[%clk 0:02:34]} 19. Nh2 {[%clk 0:02:23]}  Ne7 {[%clk 0:02:30]} 20. g4 {[%clk 0:02:14]}  g5 {[%clk 0:02:23]} 21. Bg3 {[%clk 0:02:13]}  Ng6 {[%clk 0:02:23]} 22. Nf3 {[%clk 0:02:13]}  Qe7 {[%clk 0:02:12]} 23. Qd3 {[%clk 0:02:10]}  Kg8 {[%clk 0:02:12]} 24. Kg2 {[%clk 0:02:04]}  Rc6 {[%clk 0:02:07]} 25. Rh1 {[%clk 0:02:00]}  Rfc8 {[%clk 0:02:07]} 26. h4 {[%clk 0:02:00]}  gxh4 {[%clk 0:02:02]} 27. Nxh4 {[%clk 0:01:57]}  Nxh4+ {[%clk 0:01:58]} 28. Rxh4 {[%clk 0:01:33]}  Qa3 {[%clk 0:01:54]} 29. Rch1 {[%clk 0:01:26]}  Rxc3 {[%clk 0:01:54]} 30. Qd2 {[%clk 0:01:25]}  Rd3 {[%clk 0:01:15]} 31. Qf4 {[%clk 0:01:24]}  Rcc3 {[%clk 0:01:08]} 32. g5 {[%clk 0:01:06]}  Qxa2 {[%clk 0:00:41]} 33. R1h3 {[%clk 0:00:47]}  Rf3 {[%clk 0:00:32]} 34. Qg4 {[%clk 0:00:48]}  h5 {[%clk 0:00:30]} 35. Rxh5 {[%clk 0:00:48]}  Qe2 {[%clk 0:00:28]} 36. Qh4 {[%clk 0:00:36]}  Kf8 {[%clk 0:00:26]} 37. g6 {[%clk 0:00:37]}  fxg6 {[%clk 0:00:17]} 38. Rh8+ {[%clk 0:00:23]}  Kf7 {[%clk 0:00:15]} 39. Rh7 {[%clk 0:00:15]}  Rc1 {[%clk 0:00:09]} 40. Rxg7+ {[%clk 0:00:15]}  Kxg7 {[%clk 0:00:10]} 41. Qh8+ {[%clk 0:00:16]} 1-0


[Site "https://www.chess.com"]

[Event "Titled Tuesday Blitz January 17 Early 2023"]
[White "Dehtiarov, Roman"]
[Black "Deac, Bogdan-Daniel"]
[WhiteFideId "14186640"]
[BlackFideId "1226380"]
[WhiteElo "2289"]
[BlackElo "2700"]
[Result "0-1"]
[Round "02"]
[TimeControl "180+2"]
[Date "2023.01.17"]
[WhiteClock "0:00:02"]
[BlackClock "0:00:06"]

1. e4 {[%clk 0:03:00]}  g6 {[%clk 0:02:59]} 2. d4 {[%clk 0:02:58]}  Bg7 {[%clk 0:02:59]} 3. Nc3 {[%clk 0:02:59]}  c6 {[%clk 0:02:59]} 4. Nf3 {[%clk 0:02:53]}  d6 {[%clk 0:02:57]} 5. Be3 {[%clk 0:02:52]}  Bg4 {[%clk 0:02:55]} 6. h3 {[%clk 0:02:52]}  Bxf3 {[%clk 0:02:55]} 7. Qxf3 {[%clk 0:02:53]}  Nf6 {[%clk 0:02:51]} 8. O-O-O {[%clk 0:02:52]}  Qa5 {[%clk 0:02:47]} 9. Bc4 {[%clk 0:02:46]}  Nbd7 {[%clk 0:02:45]} 10. Bb3 {[%clk 0:02:45]}  e6 {[%clk 0:02:39]} 11. Kb1 {[%clk 0:02:44]}  d5 {[%clk 0:02:34]} 12. e5 {[%clk 0:02:44]}  Ng8 {[%clk 0:02:33]} 13. Qe2 {[%clk 0:02:31]}  O-O-O {[%clk 0:02:17]} 14. f4 {[%clk 0:02:28]}  h5 {[%clk 0:02:12]} 15. Na4 {[%clk 0:02:21]}  h4 {[%clk 0:02:02]} 16. Bd2 {[%clk 0:02:19]}  Qb5 {[%clk 0:01:56]} 17. c4 {[%clk 0:01:45]}  Qa6 {[%clk 0:01:42]} 18. Rc1 {[%clk 0:01:10]}  Ne7 {[%clk 0:01:39]} 19. Qf2 {[%clk 0:00:43]}  Kb8 {[%clk 0:01:20]} 20. cxd5 {[%clk 0:00:40]}  cxd5 {[%clk 0:01:18]} 21. Bb4 {[%clk 0:00:36]}  Nf5 {[%clk 0:01:14]} 22. Bc2 {[%clk 0:00:26]}  Rc8 {[%clk 0:01:03]} 23. Bxf5 {[%clk 0:00:20]}  gxf5 {[%clk 0:00:55]} 24. Nc5 {[%clk 0:00:16]}  Nxc5 {[%clk 0:00:53]} 25. Bxc5 {[%clk 0:00:17]}  Bf8 {[%clk 0:00:50]} 26. Ka1 {[%clk 0:00:16]}  Bxc5 {[%clk 0:00:46]} 27. Rxc5 {[%clk 0:00:16]}  Rxc5 {[%clk 0:00:42]} 28. dxc5 {[%clk 0:00:17]}  Qc4 {[%clk 0:00:43]} 29. Qe3 {[%clk 0:00:08]}  d4 {[%clk 0:00:38]} 30. Qc1 {[%clk 0:00:08]}  Qd5 {[%clk 0:00:37]} 31. Rd1 {[%clk 0:00:04]}  Rg8 {[%clk 0:00:34]} 32. b4 {[%clk 0:00:02]}  Rxg2 {[%clk 0:00:29]} 33. Qb1 {[%clk 0:00:02]}  Rh2 {[%clk 0:00:14]} 34. Qb3 {[%clk 0:00:03]}  Qxb3 {[%clk 0:00:12]} 35. axb3 {[%clk 0:00:04]}  Rxh3 {[%clk 0:00:12]} 36. Rxd4 {[%clk 0:00:04]}  Rxb3 {[%clk 0:00:09]} 37. Ka2 {[%clk 0:00:04]}  Rf3 {[%clk 0:00:08]} 38. Rd7 {[%clk 0:00:04]}  Rxf4 {[%clk 0:00:08]} 39. Rxf7 {[%clk 0:00:04]}  Rxb4 {[%clk 0:00:07]} 40. Rf6 {[%clk 0:00:04]}  Re4 {[%clk 0:00:05]} 41. Rxe6 {[%clk 0:00:04]}  h3 {[%clk 0:00:06]} 42. Rh6 {[%clk 0:00:02]}  Rxe5 {[%clk 0:00:06]} 43. Rxh3 {[%clk 0:00:02]}  Rxc5 {[%clk 0:00:06]} 0-1


[Site "https://www.chess.com"]